fUSD/lending_fUSD_20251211
["ID","MTS","AMOUNT","RATE_DAILY","PERIOD"]
[398248400,1765460217436,-300.0,0.00015665,2]
[398248401,1765460217457,-300.0,0.00015666,2]
[398248402,1765460217480,-1002.45867184,0.00015669,2]
[398248403,1765460217502,-300.0,0.00015688,2]
[398248404,1765460217524,-300.0,0.00015698,2]
[398248405,1765460217547,-1000.0,0.0001571,3]
[398248406,1765460217569,-300.0,0.0001571,2]
[398248407,1765460217590,-300.0,0.00015718,2]
[398248408,1765460217611,-300.0,0.00015721,2]
[398248409,1765460217633,-300.0,0.00015722,2]
[398248410,1765460217654,-300.0,0.00015726,2]
[398248411,1765460217676,-12868.29062094,0.00015727,2]
[398248412,1765460217697,-500.0,0.00015735,2]
[398248413,1765460217718,-500.0,0.00015735,2]
[398248414,1765460217739,-500.0,0.00015735,2]
[398248415,1765460217760,-500.0,0.00015735,2]
[398248416,1765460217780,-150.0,0.00015735,2]
[398248417,1765460217802,-150.0,0.00015735,2]
[398248418,1765460217823,-150.0,0.00015735,2]
[398248419,1765460217845,-150.0,0.00015735,2]
[398248420,1765460217867,-500.0,0.00015735,2]
[398248421,1765460217887,-221.27996839,0.00015735,2]
[398248422,1765460217909,-500.0,0.00015735,2]
[398248423,1765460217930,-500.0,0.00015743,2]
[398248424,1765460217951,-500.0,0.00015743,2]
[398248425,1765460217972,-500.0,0.00015743,2]
[398248426,1765460217993,-522.35435032,0.00015743,2]
[398248427,1765460218014,-500.0,0.00015743,2]
[398248428,1765460218035,-496.58243571,0.00015743,2]
[398248429,1765460218055,-500.0,0.00015743,2]
[398248430,1765460218091,-500.0,0.00015743,2]
[398248431,1765460218116,-419.03440298,0.00015743,2]
[398248432,1765460218141,-500.0,0.00015743,2]
[398248433,1765460218165,-516.5553926,0.00015743,2]
[398248434,1765460218188,-500.0,0.00015743,2]
[398248435,1765460218210,-500.0,0.00015743,2]
[398248436,1765460218232,-500.0,0.00015743,2]
[398248437,1765460218255,-182.88370463,0.00015743,2]
[398248438,1765460218280,-500.0,0.00015743,2]
[398248439,1765460218308,-500.0,0.00015743,2]
[398248440,1765460218331,-300.0,0.00015744,2]
[398248441,1765460218355,-300.0,0.0001575,2]
[398248442,1765460218378,-300.0,0.00015754,2]
[398248443,1765460218400,-300.0,0.00015774,2]
[398248444,1765460218423,-300.0,0.00015777,2]
[398248445,1765460218446,-300.0,0.00015788,2]
[398248446,1765460218473,-200.0,0.000158,2]
[398248447,1765460218495,-300.0,0.00015814,2]
[398248448,1765460218518,-1000.0,0.00015815,2]
[398248449,1765460218542,-300.0,0.00015815,2]
[398248450,1765460218566,-413.0,0.0001582,2]
[398248451,1765460218589,-196.0,0.0001582,2]
[398248452,1765460218612,-172.0,0.0001582,2]
[398248453,1765460218635,-300.0,0.0001582,2]
[398248454,1765460218658,-17785.1273313,0.00015825,2]
[398248455,1765460218680,-300.0,0.00015831,2]
[398248456,1765460218703,-300.0,0.00015833,2]
[398248457,1765460218725,-300.0,0.00015836,2]
[398248458,1765460218747,-300.0,0.00015838,2]
[398248459,1765460218769,-500.0,0.00015843,2]
[398248460,1765460218792,-500.0,0.00015843,2]
[398248461,1765460218815,-500.0,0.00015843,2]
[398248462,1765460218839,-500.0,0.00015843,2]
[398248463,1765460218865,-500.0,0.00015843,2]
[398248464,1765460218892,-500.0,0.00015843,2]
[398248465,1765460218915,-500.0,0.00015843,2]
[398248466,1765460218939,-1000.0,0.00015843,2]
[398248467,1765460218962,-152.23,0.00015844,2]
[398248468,1765460218984,-500.0,0.00015872,2]
[398248469,1765460219006,-500.0,0.00015872,2]
[398248470,1765460219028,-500.0,0.00015872,2]
[398248471,1765460219051,-500.0,0.00015872,2]
[398248472,1765460219076,-298.65381266,0.00015872,2]
[398248473,1765460219098,-500.0,0.00015872,2]
[398248474,1765460219121,-500.0,0.00015872,2]
[398248475,1765460219144,-274.8,0.0001591,2]
[398248476,1765460219168,-320.98,0.00015944,2]
[398248477,1765460219191,-500.0,0.00015944,2]
[398248478,1765460219214,-200.0,0.00015958,2]
[398248479,1765460219238,-166.66,0.00015971,2]
[398248480,1765460219262,-12868.29062094,0.00015998,2]
[398248481,1765460219288,-500.0,0.00015999,2]
[398248482,1765460219317,-500.0,0.00016009,2]
[398248483,1765460219339,-500.0,0.00016009,2]
[398248484,1765460219363,-500.0,0.00016009,2]
[398248485,1765460219385,-500.0,0.00016009,2]
[398248486,1765460219407,-500.0,0.00016009,2]
[398248487,1765460219430,-500.0,0.00016009,2]
[398248488,1765460219452,-7400.4004,0.00016046,2]
[398248489,1765460219474,-500.0,0.00016057,2]
[398248490,1765460219506,-600.0,0.000161,2]
[398248491,1765460219536,-200.0,0.00016118,2]
[398248492,1765460219559,-500.0,0.00016146,2]
[398248493,1765460219581,-500.0,0.00016146,2]
[398248494,1765460219603,-500.0,0.00016146,2]
[398248495,1765460219625,-500.0,0.00016146,2]
[398248496,1765460219647,-500.0,0.00016146,2]
[398248497,1765460219669,-418.40164647,0.00016146,2]
[398248498,1765460219691,-200.0,0.00016184,2]
[398248499,1765460219714,-1411.0,0.00016184,2]
[398248500,1765460219739,-500.0,0.00016184,2]
[398248501,1765460219761,-274.8,0.00016184,2]
[398248502,1765460219784,-150.0,0.000162,2]
[398248503,1765460219806,-150.0,0.000162,2]
[398248504,1765460220013,-150.0,0.000162,2]
[398248505,1765460220038,-150.0,0.000162,2]
[398248506,1765460220061,-151.17525831,0.000162,2]
[398248507,1765460220085,-150.0,0.000162,2]
[398248508,1765460220108,-150.0,0.000162,2]
[398248509,1765460220130,-150.0,0.000162,2]
[398248510,1765460220153,-150.0,0.000162,2]
[398248511,1765460220174,-150.0,0.000162,2]
[398248512,1765460220196,-150.0,0.000162,2]
[398248513,1765460220218,-500.0,0.00016219,2]
[398248514,1765460220242,-12868.29062094,0.0001627,2]
[398248515,1765460220265,-200.0,0.00016279,2]
[398248516,1765460220290,-500.0,0.00016283,2]
[398248517,1765460220328,-500.0,0.00016283,2]
[398248518,1765460220355,-500.0,0.00016283,2]
[398248519,1765460220379,-500.0,0.00016283,2]
[398248520,1765460220406,-500.0,0.00016283,2]
[398248521,1765460220431,-1000.0,0.00016297,2]
[398248522,1765460220454,-470.99,0.00016359,2]
[398248523,1765460220479,-2431.219,0.00016402,2]
[398248524,1765460220503,-169.809,0.00016402,2]
[398248525,1765460220527,-500.0,0.0001642,2]
[398248526,1765460220550,-500.0,0.0001642,2]
[398248527,1765460220574,-500.0,0.0001642,2]
[398248528,1765460220597,-316.01974198,0.0001642,2]
[398248529,1765460220620,-500.0,0.0001642,2]
[398248530,1765460220642,-500.0,0.00016438,2]
[398248531,1765460220666,-500.0,0.00016438,2]
[398248532,1765460220690,-500.0,0.00016438,2]
[398248533,1765460220717,-500.0,0.00016438,2]
[398248534,1765460220742,-383.75282109,0.00016438,2]
[398248535,1765460220765,-7191.2,0.00016438,2]
[398248536,1765460220789,-274.8,0.00016458,2]
[398248537,1765460220812,-500.0,0.000165,2]
[398248538,1765460220834,-200.0,0.00016501,2]
[398248539,1765460220857,-500.0,0.00016521,2]
[398248540,1765460220881,-12868.29062094,0.00016542,2]
[398248541,1765460220904,-1600.0,0.00016554,2]
[398248542,1765460220927,-500.0,0.00016557,2]
[398248543,1765460220950,-500.0,0.00016557,2]
[398248544,1765460220972,-500.0,0.00016557,2]
[398248545,1765460220994,-500.0,0.00016557,2]
[398248546,1765460221017,-150.0,0.0001656,2]
[398248547,1765460221041,-150.0,0.0001656,2]
[398248548,1765460221063,-500.0,0.00016575,2]
[398248549,1765460221085,-158.71,0.00016621,2]
[398248550,1765460221112,-150.0,0.0001665,2]
[398248551,1765460221135,-5666.28257449,0.0001666,2]
[398248552,1765460221158,-510.0,0.00016662,2]
[398248553,1765460221181,-168.0,0.00016685,2]
[398248554,1765460221205,-500.0,0.00016694,2]
[398248555,1765460221228,-500.0,0.00016694,2]
[398248556,1765460221251,-500.0,0.00016694,2]
[398248557,1765460221274,-500.0,0.00016694,2]
[398248558,1765460221298,-500.0,0.00016712,2]
[398248559,1765460221325,-168.27,0.00016712,2]
[398248560,1765460221354,-1411.0,0.00016732,2]
[398248561,1765460221379,-274.84001395,0.00016732,2]
[398248562,1765460221404,-300.0,0.00016743,2]
[398248563,1765460221428,-300.19054713,0.00016743,2]
[398248564,1765460221453,-300.0,0.00016743,2]
[398248565,1765460221478,-150.0,0.000168,2]
[398248566,1765460221502,-166.66,0.00016804,2]
[398248567,1765460221526,-12868.29062094,0.00016813,2]
[398248568,1765460221549,-298.0,0.00016824,2]
[398248569,1765460221576,-168.0,0.00016826,2]
[398248570,1765460221599,-7000.0,0.0001683,2]
[398248571,1765460221622,-9060.0,0.00016831,2]
[398248572,1765460221646,-312.15151793,0.00016831,2]
[398248573,1765460221670,-500.0,0.00016831,2]
[398248574,1765460221694,-614.0,0.00016831,2]
[398248575,1765460221716,-500.0,0.00016831,2]
[398248576,1765460221739,-395.39785189,0.00016849,2]
[398248577,1765460221761,-200.0,0.00016864,2]
[398248578,1765460221789,-500.0,0.00016899,2]
[398248579,1765460221812,-6508.80261956,0.00016899,2]
[398248580,1765460221835,-475.17608628,0.000169,2]
[398248581,1765460221860,-150.0,0.0001692,2]
[398248582,1765460221884,-150.0,0.0001692,2]
[398248583,1765460221907,-7000.0,0.0001695,2]
[398248584,1765460221930,-411.64172486,0.00016968,2]
[398248585,1765460221953,-150.0,0.00016973,2]
[398248586,1765460221976,-150.0,0.00016973,2]
[398248587,1765460222002,-150.0,0.00016973,2]
[398248588,1765460222025,-150.0,0.00016973,2]
[398248589,1765460222049,-229.0889974,0.00016973,2]
[398248590,1765460222072,-12683.28,0.00016986,2]
[398248591,1765460222096,-500.0,0.00016986,2]
[398248592,1765460222120,-1532.0,0.00016986,2]
[398248593,1765460222145,-551.02554952,0.0001699,2]
[398248594,1765460222168,-213.2497066,0.00016998,2]
[398248595,1765460222195,-500.0,0.00016998,2]
[398248596,1765460222219,-500.0,0.00016998,2]
[398248597,1765460222242,-500.0,0.00016998,2]
[398248598,1765460222266,-500.0,0.00016998,2]
[398248599,1765460222288,-500.0,0.00016999,2]
[398248600,1765460222315,-241.18,0.00016999,2]
[398248601,1765460222339,-92363.81604518,0.00016999,2]
[398248667,1765460359226,-300.0,0.00015443,2]
[398248668,1765460359268,-9400.01,0.00015444,2]
[398248669,1765460366789,-10000.01,0.00015444,2]
[398248679,1765460417398,-1548.34045975,0.00015344,2]
[398248680,1765460417432,-1200.0,0.00015443,2]
[398248681,1765460417467,-300.0,0.00015443,2]
[398248682,1765460417563,-3903.3290805,0.00015444,2]
[398248683,1765460425699,-10000.01,0.00015444,2]
[398248693,1765460498172,-868.85881039,0.00015135,2]
[398248694,1765460502215,-445.04634234,0.00015135,2]
[398248695,1765460504380,-360.48622626,0.00015135,2]
[398248696,1765460505967,-191.83781892,0.00015135,2]
[398248697,1765460508108,-78.74580209,0.00015135,2]
[398248698,1765460508137,-169.809,0.00015135,2]
[398248699,1765460508166,-48.92141063,0.00015244,2]
[398248700,1765460511874,-207.95096595,0.00015244,2]
[398248701,1765460515118,-69.65362342,0.00015244,2]
[398248702,1765460515149,-151.0,0.00015441,2]
[398248703,1765460515178,-151.0,0.00015441,2]
[398248704,1765460515208,-300.0,0.00015443,2]
[398248705,1765460515237,-211.52193933,0.00015443,2]
[398248706,1765460515267,-564.67956402,0.00015443,2]
[398248707,1765460515300,-499.84899265,0.00015443,2]
[398248708,1765460515431,-6104.60176116,0.00015444,2]
[398248709,1765460523924,-300.0,0.00015443,2]
[398248710,1765460523972,-9400.01,0.00015444,2]
[398248729,1765460666286,-1448.58475983,0.00015344,2]
[398248730,1765460666315,-7102.84048034,0.00015344,2]
[398248731,1765460669772,-151.0,0.00015441,2]
[398248732,1765460669803,-300.0,0.00015442,2]
[398248733,1765460669834,-300.0,0.00015442,2]
[398248734,1765460669864,-1200.0,0.00015443,2]
[398248735,1765460669945,-6098.01,0.00015444,2]
[398248746,1765460731753,-1547.72403478,0.00015344,2]
[398248747,1765460731782,-300.0,0.00015443,2]
[398248748,1765460731813,-300.0,0.00015443,2]
[398248749,1765460731841,-1200.0,0.00015443,2]
[398248750,1765460731927,-3304.56193044,0.00015444,2]
[398248751,1765460739594,-10000.01,0.00015444,2]
[398248760,1765460800095,-5306.96900164,0.00015344,2]
[398248777,1765460942854,250.0,0.00015,2]
[398248794,1765461032003,-259.0,0.00015315,2]
[398248795,1765461032013,-153.97776033,0.00015343,2]
[398248796,1765461032062,-148.45953799,0.00015343,2]
[398248797,1765461032071,-211.44823669,0.00015343,2]
[398248798,1765461032081,-1200.0,0.00015343,2]
[398248799,1765461032091,-300.0,0.00015343,2]
[398248800,1765461032101,-1200.0,0.00015343,2]
[398248801,1765461032111,-300.0,0.00015343,2]
[398248802,1765461032121,-288.70593134,0.00015343,2]
[398248803,1765461032131,-195.0,0.00015343,2]
[398248804,1765461032140,-211.44823668,0.00015344,2]
[398248805,1765461032150,-4574.30488792,0.00015344,2]
[398248806,1765461032159,-211.44823668,0.00015344,2]
[398248807,1765461032168,-2500.0,0.00015344,2]
[398248808,1765461032177,-1521.90675794,0.00015378,2]
[398248809,1765461032187,-477.98,0.00015413,2]
[398248810,1765461032196,-300.0,0.00015434,2]
[398248811,1765461032206,-151.0,0.00015435,2]
[398248812,1765461032215,-151.0,0.00015435,2]
[398248813,1765461032224,-151.0,0.00015435,2]
[398248814,1765461032234,-500.0,0.00015435,2]
[398248815,1765461032243,-500.0,0.00015435,2]
[398248816,1765461032252,-151.0,0.00015435,2]
[398248817,1765461032261,-500.0,0.00015435,2]
[398248818,1765461032270,-151.0,0.00015435,2]
[398248819,1765461032279,-242.25792744,0.00015435,2]
[398248820,1765461032288,-151.0,0.00015435,2]
[398248821,1765461032298,-151.0,0.00015435,2]
[398248822,1765461032307,-500.0,0.00015435,2]
[398248823,1765461032316,-151.0,0.00015435,2]
[398248824,1765461032325,-500.0,0.00015435,2]
[398248825,1765461032335,-151.0,0.00015435,2]
[398248826,1765461032344,-500.0,0.00015435,2]
[398248827,1765461032353,-151.0,0.00015435,2]
[398248828,1765461032362,-500.0,0.00015435,2]
[398248829,1765461032372,-151.0,0.00015435,2]
[398248830,1765461032380,-500.0,0.00015435,2]
[398248831,1765461032389,-151.0,0.00015435,2]
[398248832,1765461032398,-305.78070651,0.00015435,2]
[398248833,1765461032408,-151.0,0.00015435,2]
[398248835,1765461032417,-154.86697558,0.00015435,2]
[398248837,1765461032426,-200.0,0.00015435,2]
[398248839,1765461032436,-151.0,0.00015435,2]
[398248841,1765461032444,-151.0,0.00015435,2]
[398248843,1765461032453,-151.0,0.00015435,2]
[398248845,1765461032462,-151.0,0.00015435,2]
[398248847,1765461032471,-151.0,0.00015435,2]
[398248848,1765461032480,-151.0,0.00015435,2]
[398248849,1765461032725,-151.0,0.00015435,2]
[398248850,1765461032735,-200.0,0.00015435,2]
[398248851,1765461032744,-151.0,0.00015435,2]
[398248852,1765461032754,-151.0,0.00015435,2]
[398248853,1765461032763,-151.0,0.00015435,2]
[398248854,1765461032772,-151.0,0.00015435,2]
[398248855,1765461032781,-200.0,0.00015435,2]
[398248856,1765461032791,-325.29,0.00015435,2]
[398248857,1765461032802,-500.0,0.00015443,2]
[398248858,1765461032811,-410.78,0.00015443,2]
[398248859,1765461032820,-500.0,0.00015444,2]
[398248860,1765461032829,-33409.99263978,0.00015444,2]
[398248861,1765461032842,-21530.82201042,0.00015444,2]
[398248862,1765461032854,-365.75768454,0.00015444,2]
[398248864,1765461035690,-4179.02173224,0.00015444,2]
[398248865,1765461035706,-300.0,0.00015444,2]
[398248866,1765461035717,-814.47785732,0.00015444,2]
[398248867,1765461035730,-3757.54575348,0.00015444,2]
[398248868,1765461035749,-407.0,0.00015444,2]
[398248869,1765461035761,-295.99999997,0.00015444,2]
[398248870,1765461035772,-856.63891136,0.00015444,2]
[398248873,1765461038103,-34196.03287399,0.00015444,2]
[398248874,1765461038114,-17309.88499653,0.00015444,2]
[398248875,1765461038126,-598.42417427,0.00015444,2]
[398248876,1765461038217,-3354.35483825,0.00015444,2]
[398248877,1765461038228,-3653.75292075,0.00015444,2]
[398248885,1765461040085,-1490.8121532,0.00015444,2]
[398248886,1765461040143,-22333.34946227,0.00015444,2]
[398248887,1765461040154,-1368.08453927,0.00015444,2]
[398248888,1765461040166,-252.04080855,0.00015444,2]
[398248889,1765461040176,-1093.5188701,0.00015444,2]
[398248890,1765461040201,-92135.59999998,0.00015444,2]
[398248891,1765461040314,-15173.2785,0.00015444,2]
[398248892,1765461040481,-5426.82916256,0.00015444,2]
[398248901,1765461043227,-1010.01053511,0.00015444,2]
[398248902,1765461043239,-3425.71387269,0.00015444,2]
[398248903,1765461043250,-22215.37913688,0.00015444,2]
[398248904,1765461043284,-410.39994,0.00015444,2]
[398248905,1765461043294,-302.0,0.00015444,2]
[398248906,1765461043326,-1777.10511839,0.00015444,2]
[398248908,1765461043504,-469.13885512,0.00015444,2]
[398248916,1765461046146,-4156.83662609,0.00015444,2]
[398248917,1765461046157,-1831.96,0.00015444,2]
[398248918,1765461046168,-361.17075883,0.00015444,2]
[398248919,1765461046179,-151097.36708955,0.00015444,2]
[398248922,1765461048025,-10000.01,0.00015444,2]
[398248923,1765461055694,-10000.01,0.00015344,2]
[398248933,1765461141767,3011.47,7.807e-05,2]
[398248934,1765461141981,3011.47,8.218e-05,2]
[398248935,1765461142198,3011.47,8.628e-05,2]
[398248936,1765461142408,3011.47,9.039e-05,2]
[398248937,1765461142607,3011.47,9.45e-05,2]
[398248938,1765461142844,3011.47,9.861e-05,2]
[398248939,1765461143226,-161.06830476,0.000153,5]
[398248940,1765461143273,3011.47,0.00010272,2]
[398248941,1765461143327,3011.47,0.00010683,2]
[398248942,1765461143501,3011.47,0.00011094,2]
[398248943,1765461143772,3011.47,0.00011505,2]
[398248944,1765461143959,3011.47,0.00011915,2]
[398248945,1765461144174,3011.47,0.00012326,2]
[398248946,1765461144373,3011.47,0.00012737,2]
[398248947,1765461144631,3011.47,0.00013148,2]
[398248948,1765461144843,3011.47,0.00013559,2]
[398248949,1765461145051,3011.47,0.0001397,2]
[398248950,1765461145288,3011.47,0.00014381,2]
[398248951,1765461145634,-172.33253824,0.000153,5]
[398248952,1765461145666,3011.47,0.00014792,2]
[398248953,1765461147612,-262.6434046,0.00015202,2]
[398248954,1765461150391,-300.0,0.00015202,2]
[398248955,1765461153124,-415.02405716,0.00015202,2]
[398248956,1765461155312,-233.99712743,0.00015202,2]
[398248957,1765461158956,-232.92078557,0.00015202,2]
[398248958,1765461164061,-195.0,0.00015202,2]
[398248959,1765461167234,-300.0,0.00015202,2]
[398248960,1765461169011,-268.52767106,0.00015202,2]
[398248961,1765461171637,-803.35695418,0.00015202,2]
[398248962,1765461171660,-196.64304582,0.00015243,2]
[398248963,1765461174431,-85.76259844,0.00015243,2]
[398248964,1765461174455,-86.41033671,0.000153,5]
[398248965,1765461175734,-311.46861288,0.000153,5]
[398248966,1765461179169,-232.50534437,0.000153,5]
[398248967,1765461181356,-182.22736798,0.000153,5]
[398248968,1765461184392,-330.3012005,0.000153,5]
[398248969,1765461185876,-253.79686806,0.000153,5]
[398248971,1765461187311,-182.8406772,0.000153,5]
[398248973,1765461191238,-267.1593228,0.000153,5]
[398248974,1765461218110,-177.93988235,0.000152,5]
[398248975,1765461221389,-237.1245924,0.000152,5]
[398248976,1765461224074,-172.5403897,0.000152,5]
[398248977,1765461226224,-153.72454986,0.00015211,2]
[398248978,1765461237654,263.95,0.00014965,2]
[398248980,1765461241144,-35.19771856,0.00015211,2]
[398248981,1765461241175,-195.0,0.00015311,2]
[398248982,1765461241207,-300.0,0.00015322,2]
[398248983,1765461241237,-300.0,0.00015322,2]
[398248984,1765461241267,-1200.0,0.00015343,2]
[398248985,1765461241299,-195.0,0.00015343,2]
[398248986,1765461241329,-250.0,0.00015344,2]
[398248987,1765461241361,-579.3195,0.00015344,2]
[398248988,1765461241515,-3890.97556288,0.00015344,2]
[398248989,1765461241550,-10000.01,0.00015344,2]
[398248990,1765461241892,-10000.01,0.00015344,2]
[398248991,1765461242147,-10000.01,0.00015344,2]
[398248992,1765461242391,-10000.01,0.00015344,2]
[398248993,1765461242637,-3181.64756288,0.00015344,2]
[398248994,1765461242663,-3636.71487424,0.00015344,2]
[398248995,1765461242857,-250.0,0.00015261,2]
[398248996,1765461242893,-2190.0304,0.00015344,2]
[398248997,1765461242942,-300.0,0.00015343,2]
[398248998,1765461242952,-4819.9492,0.00015344,2]
[398248999,1765461243096,-300.0,0.00015344,2]
[398249000,1765461243129,-1000.0,0.00015344,2]
[398249001,1765461243187,-7400.01,0.00015378,2]
[398249002,1765461243321,-1859.79712488,0.00015378,2]
[398249003,1765461243354,-1331.66841318,0.00015378,2]
[398249004,1765461243387,-151.0,0.00015435,2]
[398249005,1765461243420,-151.0,0.00015435,2]
[398249006,1765461243452,-151.0,0.00015435,2]
[398249007,1765461243485,-151.0,0.00015435,2]
[398249008,1765461243526,-151.0,0.00015435,2]
[398249009,1765461243563,-151.0,0.00015435,2]
[398249010,1765461243596,-151.0,0.00015435,2]
[398249011,1765461243630,-151.0,0.00015435,2]
[398249012,1765461243664,-151.0,0.00015435,2]
[398249013,1765461243695,-200.0,0.00015435,2]
[398249014,1765461243729,-151.0,0.00015435,2]
[398249015,1765461243762,-46.07892388,0.00015435,2]
[398249016,1765461244238,-104.92107612,0.00015435,2]
[398249019,1765461246997,-192.6,0.00015435,2]
[398249020,1765461247038,-9614.81,0.00015444,2]
[398249021,1765461247133,-10000.01,0.00015444,2]
[398249022,1765461253888,-195.0,0.00015439,2]
[398249023,1765461253927,-9610.01,0.00015444,2]
[398249024,1765461254023,-10000.01,0.00015444,2]
[398249025,1765461254148,-10000.01,0.00015444,2]
[398249026,1765461254260,-10000.01,0.00015444,2]
[398249027,1765461254392,-10000.01,0.00015444,2]
[398249028,1765461254570,-10000.01,0.00015444,2]
[398249029,1765461254722,-10000.01,0.00015444,2]
[398249037,1765461368832,-549.46406427,0.00015166,2]
[398249038,1765461370959,-153.82872334,0.00015166,2]
[398249039,1765461373717,-66.64242339,0.00015166,2]
[398249040,1765461373741,-97.37282533,0.00015243,2]
[398249041,1765461376541,-195.0,0.00015205,2]
[398249042,1765461376565,-183.62302761,0.00015243,2]
[398249043,1765461378596,-195.0,0.00015243,2]
[398249051,1765461534307,-164.01524872,0.00015243,2]
[398249052,1765461534330,-24.00414706,0.00015243,2]
[398249053,1765461534357,-61.98060422,0.00015335,2]
[398249054,1765461537413,-300.0,0.00015335,2]
[398249055,1765461541280,-325.79415652,0.00015335,2]
[398249056,1765461545036,-176.70422535,0.00015335,2]
[398249059,1765461548700,-481.99247478,0.00015335,2]
[398249060,1765461548724,-491.81544205,0.00015335,2]
[398249061,1765461551186,-333.92487446,0.00015335,2]
[398249062,1765461554141,-334.01590842,0.00015335,2]
[398249063,1765461555651,-258.30466272,0.00015335,2]
[398249064,1765461557187,-383.16556999,0.00015335,2]
[398249065,1765461558756,-281.38617894,0.00015335,2]
[398249066,1765461562100,-299.97059731,0.00015335,2]
[398249067,1765461564627,-307.21926674,0.00015335,2]
[398249068,1765461566837,-209.5108101,0.00015335,2]
[398249069,1765461568983,-171.07957278,0.00015335,2]
[398249070,1765461570630,-275.19858083,0.00015335,2]
[398249071,1765461574607,-320.38557446,0.00015335,2]
[398249072,1765461577851,-240.174312,0.00015335,2]
[398249073,1765461579389,-180.16924006,0.00015335,2]
[398249074,1765461581137,-828.54133745,0.00015335,2]
[398249075,1765461583837,-251.26617802,0.00015335,2]
[398249076,1765461585429,-431.48337384,0.00015335,2]
[398249077,1765461588212,-195.0,0.00015335,2]
[398249078,1765461590260,-338.82441795,0.00015335,2]
[398249079,1765461591785,-470.69694866,0.00015335,2]
[398249080,1765461594367,-260.22822215,0.00015335,2]
[398249081,1765461597702,-240.98362092,0.00015335,2]
[398249082,1765461599260,-224.75548614,0.00015335,2]
[398249083,1765461601309,-168.45933859,0.00015335,2]
[398249084,1765461604085,-216.55356462,0.00015335,2]
[398249089,1765461605610,-294.40236244,0.00015335,2]
[398249091,1765461607699,-166.917913,0.00015335,2]
[398249094,1765461609157,-331.54066141,0.00015334,2]
[398249095,1765461610838,-200.73646592,0.00015334,2]
[398249096,1765461614640,-250.0,0.00015334,2]
[398249097,1765461616988,-261.29536241,0.00015334,2]
[398249098,1765461618449,-198.67438707,0.00015335,2]
[398249099,1765461620019,-135.52105327,0.00015335,2]
[398249100,1765461620045,-42.25178612,0.00015335,2]
[398249101,1765461621591,-238.85102757,0.00015335,2]
[398249102,1765461626930,-343.84430181,0.00015335,2]
[398249103,1765461629569,-482.5116181,0.00015335,2]
[398249104,1765461631118,-174.30289042,0.00015335,2]
[398249105,1765461633266,-311.31517888,0.00015251,2]
[398249106,1765461635714,-205.6315199,0.00015251,2]
[398249107,1765461637349,-316.31409948,0.00015251,2]
[398249108,1765461640014,-193.98161178,0.00015251,2]
[398249109,1765461644519,-283.8772353,0.00015251,2]
[398249110,1765461649056,-195.0,0.00015251,2]
[398249111,1765461651785,-237.29972959,0.00015251,2]
[398249112,1765461653849,-320.72584505,0.00015251,2]
[398249113,1765461656780,-195.05741562,0.00015251,2]
[398249114,1765461660477,-458.03563488,0.00015251,2]
[398249115,1765461662203,-222.53374525,0.00015251,2]
[398249116,1765461663790,-256.44681387,0.00015251,2]
[398249117,1765461665276,-257.28454773,0.00015251,2]
[398249118,1765461667236,-161.36788,0.00015251,2]
[398249121,1765461669285,-500.0,0.00015251,2]
[398249122,1765461673318,-254.38348672,0.00015251,2]
[398249123,1765461675505,-166.959546,0.00015251,2]
[398249124,1765461678306,-172.6748682,0.00015251,2]